Workbook

Sheet Startup Expenses
B1: STARTUP EXPENSES TEMPLATE
B3: SUMMARY | C3: BUDGET | D3: ACTUAL | E3: DIFFERENCE
B4: TOTAL FUNDING | C4: =C29 -> 69000 | D4: =D29 -> 70000 | E4: =D4-C4 -> 1000
B5: TOTAL EXPENSES | C5: =C95 -> 8100 | D5: =D95 -> 7500 | E5: =C5-D5 -> 600
B6: DIFFERENCE (FUNDING MINUS EXPENSES) | C6: =C4-C5 -> 60900 | D6: =D4-D5 -> 62500
B8: FUNDING | C8: BUDGET | D8: ACTUAL | E8: DIFFERENCE
E9: (ACTUAL MINUS BUDGET)
B10: INVESTORS
B11: Investor 1 | C11: 28000 | D11: 30000 | E11: =D11-C11 -> 2000
B12: Investor 2 | C12: 16000 | D12: 14000 | E12: =D12-C12 -> -2000
B13: Investor 3 | C13: 0 | D13: 0 | E13: 0
B14: Investor 4 | C14: 0 | D14: 0 | E14: 0
C15: =SUM(C11:C14) -> 44000 | D15: =SUM(D11:D14) -> 44000
B16: LOANS
B17: Loan 1 | C17: 1000 | D17: 1000 | E17: =D17-C17 -> 0
B18: Loan 2 | C18: 1000 | D18: 1000 | E18: =D18-C18 -> 0
B19: Loan 3 | C19: 5000 | D19: 8000 | E19: 3000
B20: Loan 4 | C20: 0 | D20: 0 | E20: 0
C21: =SUM(C17:C20) -> 7000 | D21: =SUM(D17:D20) -> 10000
B22: OTHER
B23: Other 1 | C23: 6000 | D23: 6000 | E23: =D23-C23 -> 0
B24: Other 2 | C24: 12000 | D24: 10000 | E24: =D24-C24 -> -2000
B25: Other 3 | C25: 0 | D25: 0 | E25: 0
B26: Other 4 | C26: 0 | D26: 0 | E26: 0
C27: =SUM(C23:C26) -> 18000 | D27: =SUM(D23:D26) -> 16000
B29: TOTAL | C29: =SUM(C15,C21,C27) -> 69000 | D29: =SUM(D15,D21,D27) -> 70000
B31: EXPENSES | C31: BUDGET | D31: ACTUAL | E31: DIFFERENCE
E32: (BUDGET MINUS ACTUAL)
B33: FIXED EXPENSES
B34: Branding | C34: 7500 | D34: 7000 | E34: =C34-D34 -> 500
B35: Consultations | C35: 0 | D35: 0 | E35: =C35-D35 -> 0
B36: Contingency Reserve | C36: 0 | D36: 0 | E36: 0
B37: Décor | C37: 0 | D37: 0 | E37: 0
B38: Equipment | C38: 0 | D38: 0 | E38: 0
B39: Furniture | C39: 0 | D39: 0 | E39: 0
B40: Insurance | C40: 0 | D40: 0 | E40: 0
B41: Launch Advertising | C41: 0 | D41: 0 | E41: 0
B42: Legal Fees | C42: 0 | D42: 0 | E42: 0
B43: Licenses / Permits | C43: 0 | D43: 0 | E43: 0
B44: Printed Materials | C44: 0 | D44: 0 | E44: 0
B45: Real Estate / Space Acquisition | C45: 0 | D45: 0 | E45: 0
B46: Required Filings | C46: 0 | D46: 0 | E46: 0
B47: Security | C47: 0 | D47: 0 | E47: 0
B48: Signage | C48: 0 | D48: 0 | E48: 0
B49: Software | C49: 0 | D49: 0 | E49: 0
B50: Space Prep | C50: 0 | D50: 0 | E50: 0
B51: Starting Inventory | C51: 0 | D51: 0 | E51: 0
B52: Supplies | C52: 0 | D52: 0 | E52: 0
B53: Technology Hardware | C53: 0 | D53: 0 | E53: 0
B54: Telephone Set-Up / Launch | C54: 0 | D54: 0 | E54: 0
B55: Utility Set-Up / Deposits | C55: 0 | D55: 0 | E55: 0
B56: Web Development | C56: 0 | D56: 0 | E56: 0
B57: Web Domain | C57: 0 | D57: 0 | E57: 0
B58: Web Hosting | C58: 0 | D58: 0 | E58: 0
B59: Working Capital | C59: 0 | D59: 0 | E59: 0
B60: Other 1 | C60: 0 | D60: 0 | E60: 0
B61: Other 2 | C61: 0 | D61: 0 | E61: 0
B62: Other 3 | C62: 0 | D62: 0 | E62: 0
B63: Other 4 | C63: 0 | D63: 0 | E63: 0
B64: Other 5 | C64: 0 | D64: 0 | E64: 0
C65: =SUM(C34:C64) -> 7500 | D65: =SUM(D34:D64) -> 7000
B66: FIXED EXPENSES
B67: Account Fees | C67: 600 | D67: 500 | E67: =C67-D67 -> 100
B68: Accounting Fees | C68: 0 | D68: 0 | E68: =C68-D68 -> 0
B69: Advertising - Print | C69: 0 | D69: 0 | E69: 0
B70: Advertising - Radio, TV, Podcasts | C70: 0 | D70: 0 | E70: 0
B71: Advertising - Web | C71: 0 | D71: 0 | E71: 0
B72: Benefits | C72: 0 | D72: 0 | E72: 0
B73: Equipment - Further Purchases | C73: 0 | D73: 0 | E73: 0
B74: Insurance | C74: 0 | D74: 0 | E74: 0
B75: Lease / Rent | C75: 0 | D75: 0 | E75: 0
B76: Legal Fees | C76: 0 | D76: 0 | E76: 0
B77: Loan Interest and Principal | C77: 0 | D77: 0 | E77: 0
B78: Owner Salaries | C78: 0 | D78: 0 | E78: 0
B79: Payroll | C79: 0 | D79: 0 | E79: 0
B80: Payroll Tax | C80: 0 | D80: 0 | E80: 0
B81: Postage / Shipping | C81: 0 | D81: 0 | E81: 0
B82: Security | C82: 0 | D82: 0 | E82: 0
B83: Supplies | C83: 0 | D83: 0 | E83: 0
B84: Telephone | C84: 0 | D84: 0 | E84: 0
B85: Utilities | C85: 0 | D85: 0 | E85: 0
B86: Web - Hosting | C86: 0 | D86: 0 | E86: 0
B87: Web - Maintenance | C87: 0 | D87: 0 | E87: 0
B88: Other 1 | C88: 0 | D88: 0 | E88: 0
B89: Other 2 | C89: 0 | D89: 0 | E89: 0
B90: Other 3 | C90: 0 | D90: 0 | E90: 0
B91: Other 4 | C91: 0 | D91: 0 | E91: 0
B92: Other 5 | C92: 0 | D92: 0 | E92: 0
C93: =SUM(C67:C92) -> 600 | D93: =SUM(D67:D92) -> 500
B95: TOTAL | C95: =SUM(C65,C93) -> 8100 | D95: =SUM(D65,D93) -> 7500
B98: CLICK HERE TO CREATE STARTUP EXPENSES TEMPLATES IN SMARTSHEET
